fUSD/lending_fUSD_20240922
["ID","MTS","AMOUNT","RATE_DAILY","PERIOD"]
[338870048,1726963386534,906.61,0.00011832,2]
[338870058,1726963831890,-250.0,0.00013639,2]
[338870059,1726963831899,-45.5,0.00013666,2]
[338870060,1726963831911,-173.8,0.00013666,2]
[338870061,1726963831921,-250.0,0.00013669,2]
[338870062,1726963831932,-221.82,0.00013674,2]
[338870063,1726963831942,-6905.22,0.00013692,2]
[338870064,1726963831951,-153.29,0.00013699,2]
[338870065,1726963831960,-300.0,0.00013716,2]
[338870066,1726963831969,-833.86,0.00013718,2]
[338870067,1726963831980,-4886.32,0.00013725,2]
[338870068,1726963831990,-250.0,0.00013742,2]
[338870069,1726963831999,-255.0,0.00013915,2]
[338870070,1726963832009,-276.78,0.00013915,2]
[338870071,1726963832018,-1000.0,0.00014071,2]
[338870072,1726963832027,-906.61,0.00014096,2]
[338870073,1726963832037,-1082.32722319,0.00014102,2]
[338870074,1726963832046,-167.31,0.00014214,2]
[338870075,1726963832055,-227.99999999,0.0001425,2]
[338870076,1726963832065,-455.0,0.00014372,2]
[338870077,1726963832074,-565.0,0.00014536,2]
[338870078,1726963832083,-295.64,0.000146,2]
[338870079,1726963832092,-1100.50860566,0.000147,2]
[338870080,1726963832102,-1008.44223873,0.000147,2]
[338870081,1726963832111,-3500.0,0.000148,2]
[338870082,1726963832121,-666.12389189,0.00014848,2]
[338870083,1726963832131,-2000.0,0.0001488,2]
[338870084,1726963832140,-150.0,0.0001488,2]
[338870085,1726963832149,-174.70793814,0.0001489,2]
[338870086,1726963832159,-1404.0295,0.0001489,2]
[338870088,1726963832168,-14892.03571961,0.000149,2]
[338870090,1726963832188,-431.57782071,0.000149,2]
[338870091,1726963832200,-4781.02268136,0.000149,2]
[338870101,1726963838112,-1729.54386111,0.00013566,2]
[338870102,1726963838122,-1458.54887832,0.000149,2]
[338870103,1726963838131,-663.565,0.000149,2]
[338870104,1726963838141,-166.229,0.000149,2]
[338870105,1726963838151,-6342.388,0.000149,2]
[338870106,1726963838161,-397.23485996,0.000149,2]
[338870107,1726963838171,-153.32,0.000149,31]
[338870108,1726963838182,-153.32,0.000149,31]
[338870109,1726963838191,-153.32,0.000149,31]
[338870110,1726963838201,-153.32,0.000149,31]
[338870111,1726963838210,-153.32,0.000149,31]
[338870112,1726963838220,-153.32,0.000149,31]
[338870113,1726963838229,-153.32,0.000149,31]
[338870114,1726963838238,-300.0,0.0001497,2]
[338870115,1726963838248,-454.08565887,0.0001497,2]
[338870116,1726963838257,-644.6802438,0.00014989,2]
[338870117,1726963838267,-13421.35874794,0.0001499,7]
[338870118,1726963838278,-1996.13979715,0.0001499,7]
[338870121,1726963839846,-721.79,0.0001499,7]
[338870122,1726963840026,-349.663171,0.0001499,7]
[338870123,1726963840038,-951.90977,0.0001499,7]
[338870124,1726963840049,-394.145,0.0001499,7]
[338870125,1726963840060,-277917.77778494,0.0001499,7]
[338870126,1726963840069,-152.02,0.0001499,2]
[338870127,1726963840078,-535.2651031,0.00014999,2]
[338870128,1726963840087,-500.0,0.00014999,2]
[338870129,1726963840097,-420.6543901,0.00014999,2]
[338870130,1726963840106,-500.0,0.00014999,2]
[338870131,1726963840115,-500.0,0.00014999,2]
[338870132,1726963840124,-500.0,0.00014999,2]
[338870133,1726963840133,-243.68026225,0.00014999,2]
[338870134,1726963840143,-670.0,0.00015,2]
[338870135,1726963840152,-86939.06804338,0.00015,2]
[338870136,1726963840161,-4062440.67090274,0.00015,30]
[338870137,1726963840189,-1000.0,0.0001489,2]
[338870138,1726963840198,-4619.46,0.00015,30]
[338870304,1726963842905,-12689.8,0.00015,30]
[338870305,1726963843064,-971.08085506,0.00015,30]
[338870306,1726963843119,-566.62860673,0.00015,30]
[338870307,1726963843132,-224865.05314162,0.00015,30]
[338870308,1726963843144,-623.2797952,0.00015,30]
[338870309,1726963843173,-96616.34912056,0.00015,30]
[338870310,1726963843187,-7059.3,0.00015,30]
[338870313,1726963845800,-1074.49334505,0.00014602,2]
[338870314,1726963845811,-206.31768677,0.00015,2]
[338870315,1726963845823,-401.68231323,0.00015,2]
[338870316,1726963845833,-600.00988779,0.00015,30]
[338870317,1726963845853,-1214.69466643,0.00015,30]
[338870318,1726963845865,-4994.61127258,0.00015,30]
[338870319,1726963845907,-23946.04512468,0.00015,30]
[338870320,1726963845922,-3625.5644,0.00015,30]
[338870321,1726963845933,-330.98600039,0.00015,30]
[338870322,1726963845947,-1078.57073008,0.00015,30]
[338870323,1726963845962,-279.6363521,0.00015,30]
[338870324,1726963845973,-2733.38035353,0.00015,30]
[338870325,1726963845984,-236988.90730016,0.00015,30]
[338870326,1726963845995,-436.81,0.00015,30]
[338870327,1726963846007,-904.64662748,0.00015,30]
[338870328,1726963846019,-692.3550525,0.00015,30]
[338870329,1726963846030,-1502.556,0.00015,30]
[338870330,1726963846041,-4681.0,0.00015,30]
[338870331,1726963846071,-508.5,0.00015,30]
[338870332,1726963846082,-5961.9,0.00015,30]
[338870333,1726963846093,-26630.49673607,0.00015,30]
[338870334,1726963846104,-500.66413605,0.00015,30]
[338870335,1726963846182,-362.2774596,0.00015,30]
[338870336,1726963889190,179.36,0.00010959,2]
[338870337,1726963901811,3086.0,0.000102,5]
[338870338,1726964099161,500.0,0.00011164,2]
[338870339,1726964310723,150.0,0.00015,120]
[338870340,1726964427790,223.79,0.00010959,2]
[338870342,1726964572847,1050.0,0.00011,2]
[338870344,1726964766456,870.34,0.00011305,2]
[338870349,1726964860604,271.9998,0.00012027,2]
[338870362,1726965031995,-300.0,0.00012715,2]
[338870363,1726965032008,-1591.96129736,0.00012716,2]
[338870364,1726965032068,-2866.79326602,0.00012716,2]
[338870365,1726965032083,-4939.69147395,0.00012716,2]
[338870366,1726965032095,-1015.81727259,0.00012716,2]
[338870367,1726965032106,-2534.578025,0.00012716,2]
[338870368,1726965032170,-463.05,0.00012716,2]
[338870369,1726965032226,-10488.10866508,0.00012716,2]
[338870370,1726965032236,-591.52,0.00013087,2]
[338870371,1726965032245,-644.02,0.00013088,2]
[338870372,1726965032255,-591.52,0.0001309,2]
[338870373,1726965032264,-591.52,0.00013094,2]
[338870374,1726965032274,-591.52,0.00013097,2]
[338870375,1726965032284,-591.52,0.00013101,2]
[338870377,1726965032294,-591.52,0.00013104,2]
[338870379,1726965032304,-150.0,0.00013105,2]
[338870381,1726965032314,-392.13797818,0.00013108,2]
[338870384,1726965032327,-199.38202182,0.00013108,2]
[338870386,1726965032338,-178.48579973,0.00013111,2]
[338870388,1726965032348,-413.03420027,0.00013111,2]
[338870390,1726965032357,-591.52,0.00013114,2]
[338870392,1726965032366,-591.52,0.00013118,2]
[338870394,1726965032375,-250.0,0.0001312,2]
[338870395,1726965032385,-591.52,0.00013121,2]
[338870396,1726965032395,-591.52,0.00013125,2]
[338870398,1726965032404,-591.52,0.00013128,2]
[338870400,1726965032413,-591.52,0.00013132,2]
[338870401,1726965032424,-591.52,0.00013135,2]
[338870402,1726965032433,-591.52,0.00013139,2]
[338870403,1726965032442,-591.52,0.00013142,2]
[338870404,1726965032451,-591.52,0.00013145,2]
[338870405,1726965032462,-591.52,0.00013149,2]
[338870406,1726965032471,-591.52,0.00013152,2]
[338870407,1726965032482,-150.0,0.00013155,2]
[338870408,1726965032492,-227.81,0.00013155,2]
[338870409,1726965032502,-157.73970547,0.00013176,2]
[338870410,1726965032513,-333.19,0.00013206,2]
[338870411,1726965032523,-555.0264,0.00013264,2]
[338870412,1726965032534,-2800.25,0.00013276,2]
[338870413,1726965032544,-1852.42,0.00013276,2]
[338870414,1726965032555,-4364.13,0.00013297,2]
[338870415,1726965032566,-250.0,0.00013324,2]
[338870416,1726965032576,-167.13,0.00013328,2]
[338870417,1726965032585,-1054.88,0.00013328,2]
[338870418,1726965032595,-154.88,0.00013347,2]
[338870419,1726965032605,-153.56,0.00013353,2]
[338870420,1726965032615,-1000.0,0.00013358,2]
[338870421,1726965032626,-250.0,0.0001336,2]
[338870422,1726965032637,-200.0,0.00013364,2]
[338870423,1726965032649,-500.0,0.00013366,2]
[338870424,1726965032660,-2835.2968292,0.00013494,2]
[338870425,1726965032672,-870.34,0.00013569,2]
[338870426,1726965032681,-2000.0,0.00013699,2]
[338870427,1726965032691,-36806.45262024,0.00014,2]
[338870428,1726965032700,-150.0,0.00014518,2]
[338870429,1726965032710,-1259.07993894,0.000147,2]
[338870430,1726965032721,-2167.2867,0.0001479,2]
[338870431,1726965032732,-3500.0,0.000148,2]
[338870432,1726965032742,-500.0,0.0001489,2]
[338870433,1726965032753,-5247.6189,0.0001489,2]
[338870434,1726965032765,-169.644,0.00014899,2]
[338870435,1726965032776,-625.92,0.00014899,2]
[338870436,1726965032786,-568.0738,0.000149,2]
[338870437,1726965032795,-889.0117,0.000149,2]
[338870438,1726965032807,-395.9128,0.000149,2]
[338870439,1726965032816,-210.2188,0.000149,2]
[338870440,1726965032825,-2422.52877788,0.000149,2]
[338870441,1726965032834,-8030.0,0.000149,2]
[338870442,1726965032843,-7500.0,0.000149,2]
[338870443,1726965032852,-378.74885787,0.000149,2]
[338870444,1726965032863,-150.0,0.00014952,2]
[338870445,1726965032875,-247.43378867,0.00014973,2]
[338870446,1726965032886,-101181.17601034,0.0001498,3]
[338870449,1726965038466,-153.33,0.000149,31]
[338870450,1726965038475,-153.33,0.000149,31]
[338870451,1726965038485,-92.7985234,0.000149,31]
[338870452,1726965038522,-60.5314766,0.000149,31]
[338870453,1726965038531,-153.33,0.000149,31]
[338870454,1726965038540,-153.33,0.000149,31]
[338870455,1726965038550,-153.33,0.000149,31]
[338870456,1726965038559,-153.33,0.000149,31]
[338870457,1726965038568,-17951.47477136,0.0001498,3]
[338870458,1726965038578,-500.0,0.00014989,3]
[338870459,1726965038587,-267.63255155,0.00014999,2]
[338870460,1726965038597,-266.240275,0.00014999,2]
[338870461,1726965038606,-639.0,0.00015,2]
[338870462,1726965038616,-43425.66102482,0.00015,2]
[338870463,1726965038628,-282.04059771,0.00015,2]
[338870464,1726965038644,-21180.86466948,0.00015,2]
[338870466,1726965038653,-137721.57166431,0.00015,30]
[338870467,1726965038664,-859.3654162,0.00015,30]
[338870468,1726965038675,-1115.71313362,0.00015,30]
[338870469,1726965038686,-1316.73252248,0.00015,30]
[338870523,1726965039999,-396.04,0.00014301,2]
[338870524,1726965040012,-502.98754983,0.000149,2]
[338870525,1726965040023,-1034.355,0.000149,2]
[338870526,1726965040034,-56.60110195,0.000149,2]
[338870527,1726965040045,-438.65514724,0.00015,30]
[338870528,1726965040111,-1626.45291562,0.00015,30]
[338870529,1726965040123,-1504.411741,0.00015,30]
[338870530,1726965040168,-470.73536654,0.00015,30]
[338870531,1726965040182,-971.108,0.00015,30]
[338870532,1726965040193,-8215.81430112,0.00015,30]
[338870533,1726965040204,-493.47746496,0.00015,30]
[338870534,1726965040227,-3172.05138762,0.00015,30]
[338870535,1726965040238,-8395.8468521,0.00015,30]
[338870542,1726965043084,-267.63255154,0.00014999,2]
[338870545,1726965043095,-583.0,0.00015,2]
[338870549,1726965043105,-48557.56849058,0.00015,30]
[338870551,1726965043117,-9308.27000008,0.00015,30]
[338870571,1726965043301,-103767.30000095,0.00015,30]
[338870578,1726965043357,-2000.0,0.00015,30]
[338870722,1726965046021,-99267.66323231,0.00015,30]
[338870723,1726965046033,-9050.15318968,0.00015,30]
[338870724,1726965046044,-1082.61991605,0.00015,30]
[338870725,1726965046055,-2604.9921,0.00015,30]
[338870726,1726965046076,-850.00918047,0.00015,30]
[338870727,1726965046088,-1130.07324647,0.00015,30]
[338870728,1726965046189,-258.06004,0.00015,30]
[338870729,1726965046247,-264.37005527,0.00015,30]
[338870733,1726965502417,868.71,0.00012071,2]
[338870734,1726965705637,162.87,0.00010959,2]
[338870735,1726966055593,849.98,0.00011887,2]
[338870737,1726966232270,-250.0,0.00013775,2]
[338870738,1726966232280,-250.0,0.00013777,2]
[338870739,1726966232290,-300.0,0.00013809,2]
[338870740,1726966232300,-153.56,0.0001381,2]
[338870741,1726966232310,-12571.371276,0.0001381,2]
[338870742,1726966232322,-2110.0,0.0001381,2]
[338870747,1726966238317,-1185.34288774,0.0001381,2]
[338870748,1726966238334,-579.50550726,0.0001381,2]
[338870749,1726966238371,-250.0,0.0001381,2]
[338870750,1726966238428,-717.430329,0.0001381,2]
[338870751,1726966238438,-150.18,0.0001381,2]
[338870752,1726966238448,-341.72,0.00013823,2]
[338870753,1726966238458,-1000.0,0.00013829,2]
[338870754,1726966238469,-200.0,0.00013843,2]
[338870755,1726966238479,-161.32,0.00013866,2]
[338870756,1726966238491,-1458.34217809,0.00013871,2]
[338870757,1726966238535,-5462.01782191,0.00013871,2]
[338870758,1726966238546,-250.0,0.00013877,2]
[338870759,1726966238557,-175.44,0.0001394,2]
[338870760,1726966238567,-150.0,0.00013973,2]
[338870761,1726966238579,-849.98,0.00014151,2]
[338870762,1726966238589,-165.6,0.00014292,2]
[338870763,1726966238598,-3500.0,0.000148,2]
[338870764,1726966238607,-2000.0,0.0001488,2]
[338870765,1726966238617,-150.0,0.00014899,2]
[338870766,1726966238626,-168.47539267,0.000149,2]
[338870767,1726966238635,-313.3433782,0.000149,2]
[338870768,1726966238644,-153.34,0.000149,31]
[338870769,1726966238654,-153.34,0.000149,31]
[338870770,1726966238664,-153.34,0.000149,31]
[338870771,1726966238673,-153.34,0.000149,31]
[338870772,1726966238683,-153.34,0.000149,31]
[338870773,1726966238693,-153.34,0.000149,31]
[338870774,1726966238703,-153.34,0.000149,31]
[338870775,1726966238712,-500.0,0.00014986,2]
[338870776,1726966238722,-549.21146962,0.00014999,2]
[338870777,1726966238731,-500.0,0.00014999,2]
[338870778,1726966238741,-500.0,0.00014999,2]
[338870779,1726966238752,-500.0,0.00014999,2]
[338870780,1726966238761,-500.0,0.00014999,2]
[338870781,1726966238771,-500.0,0.00014999,2]
[338870782,1726966238780,-200.0,0.00014999,2]
[338870783,1726966238790,-174.041,0.00014999,2]
[338870784,1726966238799,-500.736,0.00014999,2]
[338870785,1726966238809,-625.0,0.00015,2]
[338870786,1726966238819,-247.62511432,0.00015,2]
[338870787,1726966238828,-42868.69600528,0.00015,2]
[338870788,1726966238838,-821737.72699696,0.00015,30]
[338870790,1726966240136,-1284.75061417,0.00015,30]
[338870791,1726966240152,-1306.3948632,0.00015,30]
[338870792,1726966240191,-2529.83774123,0.00015,30]
[338870793,1726966240203,-2271.40225877,0.00015,30]
[338870794,1726966240214,-1516.11654752,0.00015,30]
[338870795,1726966240226,-822.3203264,0.00015,30]
[338870796,1726966240248,-524.66514586,0.00015,30]
[338870797,1726966240260,-1056.7785687,0.00015,30]
[338870798,1726966240272,-1273.216,0.00015,30]
[338870799,1726966240284,-1032.75,0.00015,30]
[338870800,1726966240295,-4033.05741135,0.00015,30]
[338870801,1726966240310,-992.57555336,0.00015,30]
[338870802,1726966240363,-104303.63911286,0.00015,30]
[338870803,1726966240375,-460.56973873,0.00015,30]
[338870804,1726966240388,-123873.43833464,0.00015,30]
[338870805,1726966240420,-7783.23451197,0.00015,30]
[338870806,1726966240432,-2727.62255209,0.00015,30]
[338870811,1726966243245,-1544095.82760615,0.00015,30]
[338870814,1726966243297,-275.452,0.00015,30]
[338870815,1726966243353,-1456.86044233,0.00015,30]
[338870816,1726966243365,-2072.91571764,0.00015,30]
[338870817,1726966243379,-7155.68224347,0.00015,30]
[338870818,1726966243466,-146208.66646014,0.00015,30]
[338870819,1726966243524,-308.479444,0.00015,30]
[338870822,1726966246181,-153.35,0.000149,31]
[338870823,1726966246417,-153.35,0.000149,31]
[338870824,1726966246427,-515.89869064,0.00015,2]
[338870825,1726966246443,-153.35,0.000149,31]
[338870826,1726966246453,-102.10130936,0.00015,2]
[338870827,1726966246463,-2010.50717407,0.00015,30]
[338870828,1726966246474,-253.90374581,0.00015,30]
[338870829,1726966246486,-19999.982619,0.00015,30]
[338870830,1726966246503,-153.35,0.000149,31]
[338870831,1726966246514,-3413.76591837,0.00015,30]
[338870832,1726966246525,-37211.35699527,0.00015,30]
[338870833,1726966246537,-644.06250758,0.00015,30]
[338870834,1726966246548,-726.52366915,0.00015,30]
[338870835,1726966246560,-965.71228603,0.00015,30]
[338870836,1726966246571,-258.90026698,0.00015,30]
[338870837,1726966246583,-4481.46949273,0.00015,30]
[338870839,1726966246599,-153.35,0.000149,31]
[338870841,1726966246608,-10542.89497985,0.00015,30]
[338870843,1726966246619,-524.90998733,0.00015,30]
[338870845,1726966246630,-2826.19400833,0.00015,30]
[338870847,1726966246641,-1026.0,0.00015,30]
[338870850,1726966246657,-153.35,0.000149,31]
[338870852,1726966246665,-318.06036355,0.00015,30]
[338870854,1726966246678,-1556.95999997,0.00015,30]
[338870856,1726966246689,-6265.0680978,0.00015,30]
[338870858,1726966246700,-315.00000008,0.00015,30]
[338870861,1726966246717,-153.35,0.000149,31]
[338870863,1726966246726,-858.01027468,0.00015,30]
[338870869,1726966350755,264.77,0.00010959,2]
[338870870,1726966375140,1050.0,0.00011,2]
[338870871,1726966730118,789.69,0.00012018,2]
[338870872,1726967392199,795.98,0.00011958,2]
[338870874,1726967431394,-250.0,0.00013822,2]
[338870876,1726967431405,-146.48017172,0.00013822,2]
[338870880,1726967431455,-26.43982828,0.00013822,2]
[338870881,1726967431465,-250.0,0.00013896,2]
[338870882,1726967431476,-4.12684604,0.00013898,2]
[338870883,1726967431684,-795.87315396,0.00013898,2]
[338870884,1726967431693,-378.78,0.0001392,2]
[338870885,1726967431703,-250.0,0.00013925,2]
[338870886,1726967431714,-432.33626174,0.00013954,2]
[338870892,1726967437598,-11.29373826,0.00013954,2]
[338870893,1726967437607,-167.13,0.0001413,2]
[338870894,1726967437616,-795.98,0.00014222,2]
[338870895,1726967437625,-200.0,0.00014233,2]
[338870896,1726967437634,-167.3,0.00014306,2]
[338870897,1726967437643,-167.27,0.00014527,2]
[338870898,1726967437652,-150.0,0.00014783,2]
[338870899,1726967437661,-3500.0,0.000148,2]
[338870900,1726967437671,-266.07,0.000148,2]
[338870901,1726967437680,-150.0,0.00014836,2]
[338870902,1726967437689,-2000.0,0.0001488,2]
[338870903,1726967437698,-495.742,0.00014899,2]
[338870904,1726967437707,-174.041,0.00014899,2]
[338870905,1726967437717,-150.0,0.00014899,2]
[338870906,1726967437726,-4118.3362,0.000149,2]
[338870907,1726967437735,-3076.0268,0.000149,2]
[338870908,1726967437744,-41234.6904,0.000149,2]
[338870909,1726967437755,-153.37,0.000149,31]
[338870910,1726967437764,-153.37,0.000149,31]
[338870911,1726967437775,-153.37,0.000149,31]
[338870912,1726967437784,-153.37,0.000149,31]
[338870913,1726967437794,-153.37,0.000149,31]
[338870914,1726967437804,-153.37,0.000149,31]
[338870915,1726967437814,-153.37,0.000149,31]
[338870916,1726967437823,-44383.05700158,0.000149,2]
[338870917,1726967437832,-199.4246973,0.000149,2]
[338870918,1726967437841,-321.4139585,0.000149,2]
[338870919,1726967437850,-235.36694004,0.00014999,2]
[338870920,1726967437859,-500.0,0.00014999,3]
[338870921,1726967437868,-504.0,0.00015,2]
[338870922,1726967437876,-2944.97903503,0.00015,2]
[338870923,1726967437887,-275.02932635,0.00015,2]
[338870931,1726967439355,-402.22862393,0.00014642,2]
[338870932,1726967439365,-32597.77137607,0.00015,2]
[338870933,1726967439472,-2015.44602696,0.00015,2]
[338870934,1726967439482,-7437.75977462,0.00015,30]
[338870935,1726967439534,-2123.07399969,0.00015,30]
[338870936,1726967439596,-4695.87836017,0.00015,30]
[338870937,1726967439608,-1647.34702727,0.00015,30]
[338870938,1726967439620,-2845.866936,0.00015,30]
[338870939,1726967439660,-5059.50192414,0.00015,30]
[338870940,1726967439671,-3151.20379492,0.00015,30]
[338870941,1726967439683,-42466.77220368,0.00015,30]
[338871254,1726967442757,-18086.11142831,0.00015,30]
[338871256,1726967442768,-354.726,0.00015,30]
[338871258,1726967442798,-1012.62077792,0.00015,30]
[338871259,1726967442809,-2683.64741314,0.00015,30]
[338871268,1726967445392,-18066.9,0.00015,30]
[338871269,1726967445453,-19641.20032244,0.00015,30]
[338871276,1726967629988,500.0,0.00011164,2]
[338871277,1726967645495,212.67,0.00010959,2]
[338871278,1726967793301,500.0,0.00011164,2]
[338871280,1726967965282,758.69,0.0001201,2]
[338871281,1726968177489,1050.0,0.00011,2]
[338871282,1726968365107,195.0,0.000153,120]
[338871283,1726968425049,500.0,0.00011164,2]
[338871284,1726968456350,433.61223482,0.00011164,2]
[338871285,1726968525300,6263.02776518,0.0001,2]
[338871286,1726968525326,4065.7916706,0.0001,2]
[338871287,1726968551077,758.83,0.00011702,2]
[338871288,1726968618753,502.76374879,0.00011164,2]
[338871293,1726968631638,-617.85376747,0.00013618,2]
[338871295,1726968631647,-440.6,0.0001365,2]
[338871296,1726968631656,-189.39,0.00013656,2]
[338871298,1726968631669,-1000.0,0.00013695,2]
[338871300,1726968631678,-617.85376746,0.00013698,2]
[338871302,1726968631687,-250.0,0.00013718,2]
[338871304,1726968631696,-250.0,0.00013765,2]
[338871305,1726968631707,-161.32,0.00013798,2]
[338871306,1726968631718,-625.7511131,0.000138,2]
[338871307,1726968631727,-250.0,0.00013843,2]
[338871308,1726968631736,-300.0,0.00013903,2]
[338871309,1726968631746,-2280.43,0.00013904,2]
[338871310,1726968631755,-3233.97,0.00013904,2]
[338871311,1726968631764,-160.84,0.00013958,2]
[338871312,1726968631773,-758.83,0.00013966,2]
[338871313,1726968631782,-999.99,0.00013966,2]
[338871314,1726968631791,-657.12,0.00013966,2]
[338871315,1726968631800,-1330.8975,0.00014069,2]
[338871316,1726968631809,-167.3,0.00014163,2]
[338871317,1726968631818,-150.0,0.00014168,2]
[338871318,1726968631827,-12744.67239308,0.00014169,2]
[338871319,1726968631838,-3327.66179533,0.00014169,2]
[338871320,1726968631849,-13791.01,0.00014169,2]
[338871321,1726968631867,-580.31251847,0.00014169,2]
[338871322,1726968631878,-6680.24329312,0.00014169,2]
[338871323,1726968631888,-179.5,0.00014196,2]
[338871324,1726968631897,-167.31,0.00014397,2]
[338871325,1726968631907,-1181.9,0.00014468,2]
[338871326,1726968631916,-299.99,0.00014473,2]
[338871327,1726968631925,-3346.0,0.000146,2]
[338871328,1726968631935,-806.0,0.000146,2]
[338871329,1726968631943,-248.0,0.000146,2]
[338871330,1726968631952,-1914.0,0.000146,2]
[338871331,1726968631961,-261.051,0.000146,2]
[338871332,1726968631969,-1280.5672,0.000146,2]
[338871333,1726968631978,-279.61,0.000146,2]
[338871334,1726968631986,-1128.99881004,0.000146,2]
[338871335,1726968632188,932.69382955,0.00011702,2]
[338871342,1726968637897,-843.27,0.00014216,2]
[338871343,1726968637908,-1063.633,0.00014216,2]
[338871344,1726968637918,-4751.89718996,0.000146,2]
[338871345,1726968637928,-13521.9,0.000146,2]
[338871346,1726968637937,-1148.956,0.000146,2]
[338871347,1726968637947,-402.22862393,0.00014628,2]
[338871348,1726968637956,-1030.51196535,0.000147,2]
[338871349,1726968637965,-9999.99,0.000147,2]
[338871350,1726968637974,-150.0,0.00014764,2]
[338871351,1726968637983,-239.47,0.000148,2]
[338871352,1726968637992,-3500.0,0.000148,2]
[338871353,1726968638001,-773.76184472,0.000148,2]
[338871354,1726968638010,-773.76184472,0.00014811,2]
[338871355,1726968638019,-773.76184472,0.00014822,2]
[338871356,1726968638028,-773.76184472,0.00014833,2]
[338871357,1726968638037,-150.0,0.00014835,2]
[338871358,1726968638046,-773.76184472,0.00014844,2]
[338871359,1726968638057,-773.76184472,0.00014856,2]
[338871360,1726968638069,-773.76184472,0.00014867,2]
[338871361,1726968638078,-875.10831279,0.00014874,2]
[338871362,1726968638087,-175.14464574,0.00014876,2]
[338871363,1726968638096,-2725.00984661,0.00014877,2]
[338871364,1726968638107,-16.88175339,0.00014877,2]
[338871365,1726968638116,-773.76184472,0.00014878,2]
[338871366,1726968638126,-279.48195149,0.0001488,2]
[338871367,1726968638137,-117.11104851,0.0001488,2]
[338871368,1726968638147,-180.07,0.0001488,2]
[338871369,1726968638156,-2000.0,0.0001488,2]
[338871370,1726968638164,-875.10831279,0.00014883,2]
[338871371,1726968638173,-175.14464574,0.00014883,2]
[338871372,1726968638183,-875.10831279,0.00014888,2]
[338871373,1726968638192,-175.14464574,0.00014888,2]
[338871374,1726968638201,-773.76184472,0.00014889,2]
[338871375,1726968638210,-875.10831279,0.0001489,2]
[338871376,1726968638221,-175.14464574,0.0001489,2]
[338871377,1726968638230,-175.14464574,0.00014895,2]
[338871378,1726968638239,-875.10831279,0.00014898,2]
[338871379,1726968638248,-150.99,0.00014899,2]
[338871380,1726968638257,-57638.6884,0.000149,2]
[338871381,1726968638266,-1819.4259,0.000149,2]
[338871382,1726968638275,-1000.0,0.000149,2]
[338871383,1726968638284,-11977.2221,0.000149,2]
[338871384,1726968638293,-503.9333,0.000149,2]
[338871385,1726968638302,-153.4,0.000149,31]
[338871386,1726968638311,-153.4,0.000149,31]
[338871387,1726968638320,-153.4,0.000149,31]
[338871388,1726968638329,-153.4,0.000149,31]
[338871389,1726968638339,-153.4,0.000149,31]
[338871390,1726968638348,-153.4,0.000149,31]
[338871391,1726968638357,-153.4,0.000149,31]
[338871392,1726968638366,-773.76184472,0.000149,2]
[338871393,1726968638375,-321.41395849,0.000149,2]
[338871394,1726968638384,-1000.0,0.00014925,2]
[338871395,1726968638393,-1000.0,0.00014925,2]
[338871396,1726968638402,-1000.0,0.00014925,2]
[338871397,1726968638410,-1000.0,0.00014925,2]
[338871398,1726968638419,-1000.0,0.00014925,2]
[338871399,1726968638428,-1000.0,0.00014925,2]